Workbook

Sheet 1
A1: Школа | B1: МБОУ "Лицей №188" г. Казани | E1: Отд./корп | I1: День | J1: 2023-09-11
A3: Прием пищи | B3: Раздел | C3: № рец. | D3: Блюдо | E3: Выход, г | F3: Цена | G3: Калорийность | H3: Белки | I3: Жиры | J3: Углеводы
A4: Завтрак | B4: ='[1]1-2, 11-16, 25-30 сент.'!B4 -> гор.блюдо | C4: ='[1]1-2, 11-16, 25-30 сент.'!C4 -> ТТК июль 2023 г | D4: ='[1]1-2, 11-16, 25-30 сент.'!D4 -> Котлеты "Столичные" | E4: ='[1]1-2, 11-16, 25-30 сент.'!E4 -> 90 | G4: ='[1]1-2, 11-16, 25-30 сент.'!G4 -> 83 | H4: ='[1]1-2, 11-16, 25-30 сент.'!H4 -> 8.10 | I4: ='[1]1-2, 11-16, 25-30 сент.'!I4 -> 4.05 | J4: ='[1]1-2, 11-16, 25-30 сент.'!J4 -> 3.40
B5: ='[1]1-2, 11-16, 25-30 сент.'!B5 -> гор.блюдо | C5: ='[1]1-2, 11-16, 25-30 сент.'!C5 -> № 302/2015, Дели | D5: ='[1]1-2, 11-16, 25-30 сент.'!D5 -> Каша гречневая рассыпчатая | E5: ='[1]1-2, 11-16, 25-30 сент.'!E5 -> 155 | G5: ='[1]1-2, 11-16, 25-30 сент.'!G5 -> 276 | H5: ='[1]1-2, 11-16, 25-30 сент.'!H5 -> 6.66 | I5: ='[1]1-2, 11-16, 25-30 сент.'!I5 -> 9.02 | J5: ='[1]1-2, 11-16, 25-30 сент.'!J5 -> 41.91
B6: ='[1]1-2, 11-16, 25-30 сент.'!B6 -> гор.напиток | C6: ='[1]1-2, 11-16, 25-30 сент.'!C6 -> ТТК | D6: ='[1]1-2, 11-16, 25-30 сент.'!D6 -> Напиток из замороженной черной смородины | E6: ='[1]1-2, 11-16, 25-30 сент.'!E6 -> 180 | G6: ='[1]1-2, 11-16, 25-30 сент.'!G6 -> 36 | H6: ='[1]1-2, 11-16, 25-30 сент.'!H6 -> 0.08 | I6: ='[1]1-2, 11-16, 25-30 сент.'!I6 -> 0.03 | J6: ='[1]1-2, 11-16, 25-30 сент.'!J6 -> 8.49
B7: ='[1]1-2, 11-16, 25-30 сент.'!B7 -> закуска | C7: ='[1]1-2, 11-16, 25-30 сент.'!C7 -> ТТК 2023 г | D7: ='[1]1-2, 11-16, 25-30 сент.'!D7 -> Салат-бар (Морковь свежая порциями, капуста белокач., кукуруза конс., сухарики, масло раст.) | E7: ='[1]1-2, 11-16, 25-30 сент.'!E7 -> 60 | G7: ='[1]1-2, 11-16, 25-30 сент.'!G7 -> 94 | H7: ='[1]1-2, 11-16, 25-30 сент.'!H7 -> 2 | I7: ='[1]1-2, 11-16, 25-30 сент.'!I7 -> 6 | J7: ='[1]1-2, 11-16, 25-30 сент.'!J7 -> 8
B8: ='[1]1-2, 11-16, 25-30 сент.'!B8 -> хлеб | C8: ='[1]1-2, 11-16, 25-30 сент.'!C8 -> ТТК | D8: ='[1]1-2, 11-16, 25-30 сент.'!D8 -> Хлебная корзина (хлеб пш., хлеб рж.-пш.) | E8: ='[1]1-2, 11-16, 25-30 сент.'!E8 -> 40 | G8: ='[1]1-2, 11-16, 25-30 сент.'!G8 -> 91 | H8: ='[1]1-2, 11-16, 25-30 сент.'!H8 -> 2.52 | I8: ='[1]1-2, 11-16, 25-30 сент.'!I8 -> 0.36 | J8: ='[1]1-2, 11-16, 25-30 сент.'!J8 -> 18.84
A9: ИТОГО | E9: 525 | G9: ='[1]1-2, 11-16, 25-30 сент.'!G9 -> 580 | H9: ='[1]1-2, 11-16, 25-30 сент.'!H9 -> 18.92 | I9: ='[1]1-2, 11-16, 25-30 сент.'!I9 -> 19.62 | J9: ='[1]1-2, 11-16, 25-30 сент.'!J9 -> 80.42
A10: Завтрак 2 | B10: фрукты
A13: Обед | B13: закуска
B14: 1 блюдо
B15: 2 блюдо
B16: гарнир
B17: сладкое
B18: хлеб бел.
B19: хлеб черн.
